bitfinex/quotes_BTCUSD_20251004
["timestamp","ask_amount","ask_price","bid_price","bid_amount"]
[1759596623023,1.07291196,121680.0,121670.0,0.1362853]
[1759596623479,1.07291196,121680.0,121670.0,0.1341353]
[1759596624731,1.07291196,121680.0,121670.0,0.1362853]
[1759596624953,1.07291196,121680.0,121670.0,0.1341353]
[1759596625594,0.81247196,121680.0,121670.0,0.1341353]
[1759596625807,1.07287196,121680.0,121670.0,0.1341353]
[1759596627860,1.07287196,121680.0,121670.0,0.1362853]
[1759596628107,1.07287196,121680.0,121670.0,0.1341353]
[1759596630734,0.81226196,121680.0,121670.0,0.1362553]
[1759596630948,0.72804789,121680.0,121670.0,0.1391953]
[1759596631159,0.96344789,121680.0,121670.0,0.1391953]
[1759596634585,0.72804789,121680.0,121670.0,0.1391953]
[1759596634803,0.96344789,121680.0,121670.0,0.1391953]
[1759596635020,0.72804789,121680.0,121670.0,0.1391953]
[1759596635246,0.96340789,121680.0,121670.0,0.1391953]
[1759596635463,0.97921571,121680.0,121670.0,0.1391953]
[1759596639852,0.74385571,121680.0,121670.0,0.1391953]
[1759596640057,0.97921571,121680.0,121670.0,0.1391953]
[1759596640888,0.74385571,121680.0,121670.0,0.1391953]
[1759596641026,0.96340789,121680.0,121670.0,0.1391953]
[1759596646648,0.72804789,121680.0,121670.0,0.1391953]
[1759596646877,0.96336789,121680.0,121670.0,0.1391953]
[1759596648224,0.72804789,121680.0,121670.0,0.1391953]
[1759596648418,1.04758196,121680.0,121670.0,0.1391953]
[1759596649652,0.80677175,121680.0,121670.0,0.1391953]
[1759596650091,0.72255768,121680.0,121670.0,0.1391953]
[1759596651484,0.72867159,121680.0,121670.0,0.1391953]
[1759596654996,0.72255768,121680.0,121670.0,0.1391953]
[1759596655205,0.72255768,121680.0,121670.0,0.1556332]
[1759596655774,0.55819214,121680.0,121670.0,0.1556332]
[1759596655966,0.72255768,121680.0,121670.0,0.1556332]
[1759596658004,0.55819214,121680.0,121670.0,0.1391953]
[1759596658413,0.72255768,121680.0,121670.0,0.1391953]
[1759596658836,0.70855768,121680.0,121670.0,0.1351953]
[1759596659057,0.70855768,121680.0,121670.0,0.1391953]
[1759596659306,0.54719214,121680.0,121670.0,0.1391953]
[1759596659531,0.54719214,121680.0,121670.0,0.30357435]
[1759596659749,0.54319214,121680.0,121670.0,0.30357435]
[1759596659965,0.54019214,121680.0,121670.0,0.53481435]
[1759596660151,0.47795109,121680.0,121670.0,0.3704353]
[1759596660922,0.47795109,121680.0,121670.0,0.53481435]
[1759596661128,0.47795109,121680.0,121670.0,0.53781435]
[1759596661750,0.48095109,121680.0,121670.0,0.54081435]
[1759596673468,0.53856002,121680.0,121670.0,0.3764353]
[1759596674136,0.53856002,121680.0,121670.0,0.54081435]
[1759596676333,0.53856002,121680.0,121670.0,0.3764353]
[1759596676573,0.70292556,121680.0,121670.0,0.3764353]
[1759596676760,0.70292556,121680.0,121670.0,0.54081435]
[1759596677223,0.70292556,121680.0,121670.0,0.3764353]
[1759596677699,0.70313556,121680.0,121670.0,0.1382553]
[1759596677929,0.70313556,121680.0,121670.0,0.3712553]
[1759596678377,0.70313556,121680.0,121670.0,0.3732153]
[1759596678594,0.70292556,121680.0,121670.0,0.3762553]
[1759596683387,0.64531663,121680.0,121670.0,0.3762553]
[1759596706645,0.64552663,121680.0,121670.0,0.3760953]
[1759596706858,0.64552663,121680.0,121670.0,0.1411353]
[1759596707070,0.64552663,121680.0,121670.0,0.3760553]
[1759596707278,0.64531663,121680.0,121670.0,0.3760553]
[1759596707526,0.6862999,121680.0,121670.0,0.3760553]
[1759596707955,0.6862999,121680.0,121670.0,0.1411353]
[1759596708176,0.6862999,121680.0,121670.0,0.3760553]
[1759596728289,0.6865099,121680.0,121670.0,0.3740953]
[1759596728521,0.6865099,121680.0,121670.0,0.3709353]
[1759596728522,0.6866399,121680.0,121670.0,0.3709353]
[1759596729758,0.6866399,121680.0,121670.0,0.3708953]
[1759596729983,0.6865099,121680.0,121670.0,0.3708953]
[1759596731903,0.64531663,121680.0,121670.0,0.3729053]
[1759596732104,0.64531663,121680.0,121670.0,0.3760153]
[1759596744736,0.64552663,121680.0,121670.0,0.3708153]
[1759596746812,0.90377325,121680.0,121670.0,0.3708153]
[1759596748732,0.90377325,121680.0,121670.0,0.3728253]
[1759596750290,0.98798732,121680.0,121670.0,0.3728253]
[1759596751661,0.98798732,121680.0,121670.0,0.3757653]
[1759596751877,0.98798732,121680.0,121670.0,0.3728253]
[1759596752833,0.98777732,121680.0,121670.0,0.3757653]
[1759596753065,0.90356325,121680.0,121670.0,0.3757653]
[1759596756078,0.90377325,121680.0,121670.0,0.3728253]
[1759596758667,0.90377325,121680.0,121670.0,0.3757653]
[1759596760376,0.48095109,121680.0,121670.0,0.3757653]
[1759596766056,0.48095109,121680.0,121670.0,0.54014435]
[1759596766270,0.48095109,121680.0,121670.0,0.3757653]
[1759596766680,0.64531663,121680.0,121670.0,0.3757653]
[1759596767339,0.48095109,121680.0,121670.0,0.3757653]
[1759596770526,0.64531663,121680.0,121670.0,0.3757653]
[1759596771534,0.64531663,121680.0,121670.0,0.1410853]
[1759596771694,0.64531663,121680.0,121670.0,0.3755653]
[1759596777626,0.7295307,121680.0,121670.0,0.3755653]
[1759596781543,0.64531663,121680.0,121670.0,0.3755653]
[1759596784518,0.64531663,121680.0,121670.0,0.3655653]
[1759596787341,0.64531663,121680.0,121670.0,0.3626253]
[1759596787601,0.64552663,121680.0,121670.0,0.3606153]
[1759596787799,0.64552663,121680.0,121670.0,0.3625753]
[1759596788012,0.7295307,121680.0,121670.0,0.3657553]
[1759596789688,0.7295707,121680.0,121670.0,0.3657553]
[1759596790087,0.7295707,121680.0,121670.0,0.3655953]
[1759596801488,0.7297807,121680.0,121670.0,0.3624153]
[1759596801911,0.7295707,121680.0,121670.0,0.3655953]
[1759596827620,0.7295707,121680.0,121670.0,0.1312753]
[1759596827827,0.7295707,121680.0,121670.0,0.3653153]
[1759596829625,0.7295707,121680.0,121670.0,0.3652753]
[1759596830059,0.7295707,121680.0,121670.0,0.1312753]
[1759596830229,0.7295707,121680.0,121670.0,0.3652753]
[1759596835665,0.64535663,121680.0,121670.0,0.3652753]
[1759596853212,0.64556663,121680.0,121670.0,0.3599753]
[1759596853877,0.64556663,121680.0,121670.0,0.3620453]
[1759596854087,0.64535663,121680.0,121670.0,0.3650753]
[1759596861249,0.64535663,121680.0,121670.0,0.3650353]
[1759596861551,0.7295707,121680.0,121670.0,0.3650353]
[1759596868084,0.45083919,121680.0,121670.0,0.52941435]
[1759596868337,0.11083919,121680.0,121670.0,0.52941435]
[1759596868550,0.02771713,121680.0,121670.0,0.52941435]
[1759596868765,0.02446713,121680.0,121670.0,0.55407946]
[1759596868928,0.00304,121680.0,121670.0,0.55407946]
[1759596869538,4e-05,121680.0,121670.0,0.55107946]
[1759596869980,0.00404,121680.0,121670.0,0.56307946]
[1759596870626,0.00404,121680.0,121670.0,0.56007946]
[1759596870834,4e-05,121680.0,121670.0,0.55807946]
[1759596871113,0.00404,121680.0,121670.0,0.56307946]
[1759596871348,0.00404,121680.0,121670.0,0.57607946]
[1759596871551,0.00504,121680.0,121670.0,0.57607946]
[1759596871776,0.00504,121680.0,121670.0,0.57595946]
[1759596871981,0.00504,121680.0,121670.0,0.66139946]
[1759596879492,0.00504,121680.0,121670.0,0.66127946]
[1759596884478,0.00504,121680.0,121670.0,0.34227946]
[1759596884794,0.00504,121680.0,121670.0,0.57583946]
[1759596885006,0.00504,121680.0,121670.0,0.66123946]
[1759596885985,0.00504,121680.0,121670.0,0.34227946]
[1759596886245,0.00504,121680.0,121670.0,0.66123946]
[1759596887451,0.00504,121680.0,121670.0,0.57583946]
[1759596887651,0.00504,121680.0,121670.0,0.66123946]
[1759596893147,0.00504,121680.0,121670.0,5.71123946]
[1759596897718,0.00504,121680.0,121670.0,5.73227946]
[1759596897939,0.00504,121680.0,121670.0,5.71115946]
[1759596901787,0.00504,121680.0,121670.0,5.71111946]
[1759596907485,0.00504,121680.0,121670.0,5.39227946]
[1759596907694,0.2879395,121680.0,121670.0,0.1481353]
[1759596907899,0.73682582,121680.0,121670.0,0.1481353]
[1759596908331,0.73682582,121680.0,121670.0,0.3815353]
[1759596908545,0.16439256,121660.0,121640.0,0.30832637]
[1759596908752,0.00526,121650.0,121640.0,0.22297572]
[1759596909030,0.00526,121650.0,121640.0,0.30837572]
[1759596909227,0.28294004,121650.0,121640.0,0.04337016]
[1759596909446,0.28294004,121650.0,121640.0,0.12877016]
[1759596909659,0.28294004,121650.0,121640.0,0.37017016]
[1759596909892,0.28294004,121650.0,121640.0,0.38217016]
[1759596910095,0.28294004,121650.0,121640.0,0.53858975]
[1759596910342,0.28294004,121650.0,121640.0,0.53458975]
[1759596911128,0.3276733,121650.0,121640.0,0.53458975]
[1759596911591,0.19660798,121650.0,121640.0,0.53458975]
[1759596911802,0.20060798,121650.0,121640.0,0.54358975]
[1759596913282,0.0362019,121650.0,121640.0,0.54358975]
[1759596914115,0.0341519,121650.0,121640.0,0.54564975]
[1759596914329,0.0341519,121650.0,121640.0,0.54861975]
[1759596914502,0.0341519,121650.0,121640.0,0.54923592]
[1759596923613,0.004,121650.0,121640.0,0.54923592]
[1759596943261,0.004,121650.0,121640.0,5.59923592]
[1759596943679,0.004,121650.0,121640.0,5.93923592]
[1759596946330,0.004,121650.0,121640.0,5.62043592]
[1759596946544,0.004,121650.0,121640.0,5.93927592]
[1759596947792,0.004,121650.0,121640.0,5.62043592]
[1759596948005,0.004,121650.0,121640.0,5.93927592]
[1759596951069,0.004,121650.0,121640.0,5.62043592]
[1759596951295,0.004,121650.0,121640.0,5.93923592]
[1759596956337,0.00079837,121650.0,121640.0,5.93923592]
[1759596962412,0.00079837,121650.0,121640.0,5.62043592]
[1759596962655,0.00079837,121650.0,121640.0,0.54919592]
[1759596966297,0.00015456,121650.0,121640.0,0.54919592]
[1759596976257,3.058e-05,121650.0,121640.0,0.54919592]
[1759596977938,3.058e-05,121650.0,121640.0,0.06304633]
[1759596977939,0.08513264,121650.0,121640.0,0.06304633]
[1759596978121,0.11665454,121650.0,121640.0,0.45868592]
[1759596978316,0.11665454,121650.0,121640.0,0.29426633]
[1759596978317,0.11528454,121650.0,121640.0,0.29426633]
[1759596978518,0.11528454,121650.0,121640.0,0.45868592]
[1759596978876,0.11330454,121650.0,121640.0,0.46396592]
[1759596979106,0.11330454,121650.0,121640.0,0.45596592]
[1759596979740,0.11327396,121650.0,121640.0,0.44696592]
[1759596979950,0.11327396,121650.0,121640.0,0.45496592]
[1759596980161,0.11727396,121650.0,121640.0,0.45496592]
[1759596980578,0.12527396,121650.0,121640.0,0.45596592]
[1759596981926,0.12725396,121650.0,121640.0,0.53612592]
[1759596984560,0.29166004,121650.0,121640.0,0.53612592]
[1759596987464,0.69001977,121650.0,121640.0,0.05298633]
[1759596987737,1.21942585,121650.0,121640.0,0.05298633]
[1759596988295,1.21142585,121650.0,121640.0,0.05198633]
[1759596988706,1.1619282,121650.0,121640.0,0.05398633]
[1759596988925,0.68777231,121650.0,121640.0,0.05398633]
[1759596989140,0.6954344,121650.0,121640.0,0.05398633]
[1759596989385,0.6914344,121650.0,121640.0,0.04598633]
[1759596989759,0.6974344,121650.0,121640.0,0.04998633]
[1759596990393,1.20309984,121650.0,121640.0,0.04998633]
[1759596990622,1.20309984,121650.0,121640.0,0.28394633]
[1759596991026,0.75177596,121650.0,121640.0,0.28394633]
[1759596991230,1.2574414,121650.0,121640.0,0.28394633]
[1759596991554,0.75177596,121650.0,121640.0,0.28394633]
[1759596991768,1.2574414,121650.0,121640.0,0.28394633]
[1759596991975,0.15384433,121650.0,121640.0,0.28598633]
[1759596992172,0.15384433,121650.0,121640.0,0.45343592]
[1759596992173,0.44612206,121650.0,121640.0,0.45343592]
[1759596992377,0.47823396,121650.0,121640.0,0.45040592]
[1759596992934,0.64264004,121650.0,121640.0,0.44836592]
[1759596997926,0.64264004,121650.0,121640.0,0.45040592]
[1759596998343,0.64068004,121650.0,121640.0,0.45343592]
[1759597001316,0.023,121650.0,121640.0,0.45343592]
[1759597002368,0.0471519,121650.0,121640.0,0.44943592]
[1759597002806,0.0521519,121650.0,121640.0,0.46043592]
[1759597003033,0.0351519,121650.0,121640.0,0.45843592]
[1759597003477,0.0361519,121650.0,121640.0,0.46043592]
[1759597013653,0.0361519,121650.0,121640.0,0.46007592]
[1759597013893,0.0361519,121650.0,121640.0,0.54551592]
[1759597028528,0.006,121650.0,121640.0,0.54551592]
[1759597068404,0.006,121650.0,121640.0,0.54519592]
[1759597070579,0.006,121650.0,121640.0,5.59519592]
[1759597071008,0.006,121650.0,121640.0,6.01831798]
[1759597071196,0.006,121650.0,121640.0,6.0429862]
[1759597072101,0.001,121650.0,121640.0,6.0319862]
[1759597072354,0.03074243,121680.0,121670.0,0.16437905]
[1759597072569,0.11386449,121680.0,121670.0,0.48506905]
[1759597072860,0.11386449,121680.0,121670.0,0.48802905]
[1759597073470,0.11386449,121680.0,121670.0,0.49581715]
[1759597074124,0.12186449,121680.0,121670.0,0.49981715]
[1759597077267,0.12186449,121680.0,121670.0,0.49977715]
[1759597079425,0.12384449,121680.0,121670.0,0.17813715]
[1759597079627,0.12384449,121680.0,121670.0,0.49681715]
[1759597079871,0.12186449,121680.0,121670.0,0.50004715]
[1759597080323,0.12186449,121680.0,121670.0,0.17357905]
[1759597080761,0.12186449,121680.0,121670.0,0.49225905]
[1759597085169,0.12186449,121680.0,121670.0,0.50006522]
[1759597095825,0.12186449,121680.0,121670.0,0.49996522]
[1759597096075,0.00859053,121680.0,121670.0,0.49996522]
[1759597097012,0.00859053,121680.0,121670.0,0.52462906]
[1759597099089,0.00859053,121680.0,121670.0,5.57462906]
[1759597106538,0.00859053,121680.0,121670.0,5.25594906]
[1759597106714,0.00859053,121680.0,121670.0,5.57450906]
[1759597106968,0.00859053,121680.0,121670.0,5.25594906]
[1759597107183,0.00859053,121680.0,121670.0,5.57446906]
[1759597107976,0.00859053,121680.0,121670.0,5.25594906]
[1759597108151,0.00859053,121680.0,121670.0,5.57446906]
[1759597108772,0.00859053,121680.0,121670.0,5.48906906]
[1759597108932,0.00859053,121680.0,121670.0,5.57446906]
[1759597113418,0.00859053,121680.0,121670.0,5.25594906]
[1759597113628,0.00859053,121680.0,121670.0,5.57446906]
[1759597113834,0.00859053,121680.0,121670.0,5.48902906]
[1759597114161,0.00859053,121680.0,121670.0,5.57442906]
[1759597117686,0.00859053,121680.0,121670.0,5.25594906]
[1759597117944,0.00859053,121680.0,121670.0,5.57442906]
[1759597127269,0.00859053,121680.0,121670.0,5.65755112]
[1759597127494,0.00859053,121680.0,121670.0,5.99755112]
[1759597127708,1e-08,121680.0,121670.0,5.99755112]
[1759597128290,0.06649765,121710.0,121700.0,0.16433853]
[1759597128515,0.06649765,121710.0,121700.0,0.48477853]
[1759597128688,0.06649765,121710.0,121700.0,0.48799853]
[1759597128898,0.0671134,121710.0,121700.0,0.48799853]
[1759597129302,0.00061575,121710.0,121700.0,0.48799853]
[1759597129528,0.00469682,121710.0,121700.0,0.48899853]
[1759597131445,0.01469682,121710.0,121700.0,0.49199853]
[1759597138068,0.01469682,121710.0,121700.0,0.49195853]
[1759597138419,0.01469682,121710.0,121700.0,0.17355853]
[1759597138624,0.01469682,121710.0,121700.0,0.49195853]
[1759597153033,0.01469682,121710.0,121700.0,0.17355853]
[1759597153741,0.01469682,121710.0,121700.0,0.49187853]
[1759597154285,0.01469682,121710.0,121700.0,0.17355853]
[1759597154498,0.04820872,121710.0,121700.0,0.48665853]
[1759597155340,0.04695872,121710.0,121700.0,0.48665853]
[1759597156827,0.04695872,121710.0,121700.0,0.48881853]
[1759597157227,0.04695872,121710.0,121700.0,0.48665853]
[1759597161164,0.04695872,121710.0,121700.0,0.48881853]
[1759597162062,0.04484872,121710.0,121700.0,0.49174853]
[1759597193100,0.01469682,121710.0,121700.0,0.49174853]
[1759597196933,0.01469682,121710.0,121700.0,0.57487059]
[1759597197200,0.01469682,121710.0,121700.0,0.49174853]
[1759597197422,0.01469682,121710.0,121700.0,0.5162857]
[1759597200441,0.01469682,121710.0,121700.0,0.25882853]
[1759597200594,0.01469682,121710.0,121700.0,0.49158853]
[1759597208026,0.01469682,121710.0,121700.0,0.17342853]
[1759597208230,0.29427581,121710.0,121700.0,0.0894]
[1759597208393,0.29564581,121710.0,121700.0,0.32216]
[1759597208800,0.3648684,121710.0,121700.0,0.32216]
[1759597209398,0.3402056,121710.0,121700.0,0.32216]
[1759597210251,1.12907033,121710.0,121700.0,0.004]
[1759597210477,1.12907033,121710.0,121700.0,0.14448]
[1759597211282,0.6802056,121710.0,121700.0,0.14448]
[1759597211508,1.12507033,121710.0,121700.0,0.003]
[1759597211926,0.19449043,121700.0,121690.0,0.19056]
[1759597212147,0.36517656,121700.0,121690.0,0.19056]
[1759597212558,0.39025419,121700.0,121690.0,0.19056]
[1759597213802,0.41525419,121700.0,121690.0,0.19556]
[1759597214799,0.42304461,121700.0,121690.0,0.19556]
[1759597215301,0.76304461,121700.0,121690.0,0.19556]
[1759597216418,0.76304461,121700.0,121690.0,0.23776]
[1759597217061,0.67883054,121700.0,121690.0,0.23776]
[1759597218915,0.67883054,121700.0,121690.0,0.005]
[1759597220197,1.12769527,121700.0,121690.0,0.005]
[1759597222450,1.09754337,121700.0,121690.0,0.005]
[1759597222866,1.36045527,121700.0,121690.0,0.005]
[1759597223081,1.44466934,121700.0,121690.0,0.005]
[1759597223731,0.99580461,121700.0,121690.0,0.005]
[1759597223963,1.44466934,121700.0,121690.0,0.005]
[1759597225300,0.99580461,121700.0,121690.0,0.005]
[1759597225740,1.36045527,121700.0,121690.0,0.005]
[1759597228721,1.12769527,121700.0,121690.0,0.005]
[1759597228936,1.36045527,121700.0,121690.0,0.005]
[1759597231368,0.91159054,121700.0,121690.0,0.005]
[1759597231581,1.36045527,121700.0,121690.0,0.005]
[1759597231794,0.99580461,121700.0,121690.0,0.005]
[1759597232003,1.44466934,121700.0,121690.0,0.005]
[1759597232681,1.21190934,121700.0,121690.0,0.005]
[1759597232892,1.44466934,121700.0,121690.0,0.005]
[1759597237271,0.76304461,121700.0,121690.0,0.005]
[1759597237480,1.44466934,121700.0,121690.0,0.005]
[1759597238320,1.50114204,121700.0,121690.0,0.005]
[1759597240153,0.91159054,121700.0,121690.0,0.005]
[1759597240306,1.41692797,121700.0,121690.0,0.005]
[1759597240526,0.91159054,121700.0,121690.0,0.005]
[1759597240737,1.41692797,121700.0,121690.0,0.005]
[1759597247675,1.18279797,121700.0,121690.0,0.005]
[1759597247862,1.41555797,121700.0,121690.0,0.005]
[1759597248065,1.41692797,121700.0,121690.0,0.005]
[1759597248327,1.50114204,121700.0,121690.0,0.005]
[1759597249297,1.50883523,121700.0,121690.0,0.005]
[1759597249929,1.50114204,121700.0,121690.0,0.005]
[1759597251951,1.41692797,121700.0,121690.0,0.005]
[1759597252168,1.18416797,121700.0,121690.0,0.005]
[1759597252330,1.41688797,121700.0,121690.0,0.005]
[1759597252544,1.18416797,121700.0,121690.0,0.005]
[1759597252920,1.41688797,121700.0,121690.0,0.005]
[1759597253275,1.49489456,121700.0,121690.0,0.005]
[1759597253475,1.49352456,121700.0,121690.0,0.005]
[1759597253717,1.49489456,121700.0,121690.0,0.005]
[1759597253927,1.26080456,121700.0,121690.0,0.005]
[1759597254190,1.41551797,121700.0,121690.0,0.005]
[1759597254622,1.41688797,121700.0,121690.0,0.005]
[1759597256289,1.41688797,121700.0,121690.0,0.00695]
[1759597256290,0.67746054,121700.0,121690.0,0.00695]
[1759597256509,1.41353797,121700.0,121690.0,0.01011]
[1759597256928,0.90820054,121700.0,121690.0,0.01011]
[1759597257180,0.67746054,121700.0,121690.0,0.00695]
[1759597257389,0.91018054,121700.0,121690.0,0.00695]
[1759597257778,1.41551797,121700.0,121690.0,0.00695]
[1759597258176,0.67746054,121700.0,121690.0,0.00695]
[1759597258388,0.90041012,121700.0,121690.0,0.01011]
[1759597259133,0.66769012,121700.0,121690.0,0.01011]
[1759597259545,0.90041012,121700.0,121690.0,0.01011]
[1759597260768,0.66769012,121700.0,121690.0,0.01011]
[1759597260967,0.90041012,121700.0,121690.0,0.01011]
[1759597261308,0.66769012,121700.0,121690.0,0.01011]
[1759597261515,0.90041012,121700.0,121690.0,0.01011]
[1759597263322,0.73607159,121700.0,121690.0,0.01011]
[1759597264224,0.16335159,121700.0,121690.0,0.17446204]
[1759597264444,0.13868449,121700.0,121690.0,0.17446204]
[1759597264673,0.02541053,121700.0,121690.0,0.17446204]
[1759597265578,0.05556243,121700.0,121690.0,0.17446204]
[1759597267700,0.05556243,121700.0,121690.0,0.18251387]
[1759597273049,0.02541053,121700.0,121690.0,0.26791387]
[1759597274185,0.01341053,121700.0,121690.0,0.26691387]
[1759597274385,0.01341053,121700.0,121690.0,0.26791387]
[1759597274573,0.01441053,121700.0,121690.0,0.26791387]
[1759597274814,0.01341053,121700.0,121690.0,0.26691387]
[1759597274997,0.00041053,121700.0,121690.0,0.26291387]
[1759597275140,0.00141053,121700.0,121690.0,0.26891387]
[1759597275350,0.00741053,121700.0,121690.0,0.26891387]
[1759597275867,0.00141053,121700.0,121690.0,0.26591387]
[1759597276071,0.00441053,121700.0,121690.0,0.26891387]
[1759597278912,0.00441053,121700.0,121690.0,0.50155387]
[1759597283978,0.00441053,121700.0,121690.0,5.63467593]
[1759597294079,0.00441053,121700.0,121690.0,5.63459593]
[1759597300796,0.00441053,121700.0,121690.0,5.31663593]
[1759597301021,0.00441053,121700.0,121690.0,5.63455593]
[1759597307804,0.00441053,121700.0,121690.0,6.01088128]
[1759597308548,0.00041053,121700.0,121690.0,6.00488128]
[1759597308777,0.00041053,121700.0,121690.0,6.10488128]
[1759597308998,0.00441053,121700.0,121690.0,6.11988128]
[1759597309686,8.107e-05,121710.0,121700.0,0.50433853]
[1759597309904,8.107e-05,121710.0,121700.0,5.97303059]
[1759597310120,8.107e-05,121710.0,121700.0,5.98684049]
[1759597310576,0.0002863,121710.0,121700.0,6.01149229]
[1759597311514,0.0002863,121710.0,121700.0,6.35305229]
[1759597311778,0.0002863,121710.0,121700.0,5.77897229]
[1759597311971,0.0022863,121710.0,121700.0,6.4930396]
[1759597314686,0.0022863,121710.0,121700.0,5.7335596]
[1759597314889,0.0022863,121710.0,121700.0,6.3930396]
[1759597315295,0.0022863,121710.0,121700.0,6.0514396]
[1759597321257,0.0022863,121710.0,121700.0,6.1514396]
[1759597322188,4e-05,121730.0,121720.0,0.50431153]
[1759597322378,4e-05,121730.0,121720.0,5.86987359]
[1759597322634,4e-05,121730.0,121720.0,5.87490359]
[1759597323125,4e-05,121730.0,121720.0,5.89955438]
[1759597323332,4e-05,121730.0,121720.0,6.02455438]
[1759597323538,0.00304,121730.0,121720.0,6.04355566]
[1759597324844,4e-05,121730.0,121720.0,6.03555566]
[1759597325046,4e-05,121730.0,121720.0,5.80311566]
[1759597325252,0.00204,121730.0,121720.0,6.45747438]
[1759597325463,0.00204,121730.0,121720.0,6.37611438]
[1759597325642,0.00204,121730.0,121720.0,6.45547438]
[1759597325643,4e-05,121730.0,121720.0,6.45547438]
[1759597325849,4e-05,121730.0,121720.0,6.45147438]
[1759597326062,0.00204,121730.0,121720.0,6.45847438]
[1759597326262,0.00204,121730.0,121720.0,6.36447438]
[1759597326478,0.00204,121730.0,121720.0,6.46447438]
[1759597327589,0.00204,121730.0,121720.0,6.4752614]
[1759597328019,0.00245038,121730.0,121720.0,6.4752614]
[1759597329291,0.06649765,121770.0,121760.0,0.16425755]
[1759597329497,0.06699181,121770.0,121760.0,0.48201755]
[1759597329696,0.06699181,121770.0,121760.0,0.48704755]
[1759597329902,0.00049416,121770.0,121760.0,0.48704755]
[1759597331268,0.00949416,121770.0,121760.0,0.48904755]
[1759597331587,0.01949416,121770.0,121760.0,0.48904755]
[1759597332205,0.01949416,121770.0,121760.0,0.49703568]
[1759597334488,0.02147416,121770.0,121760.0,0.49703568]
[1759597334687,0.01949416,121770.0,121760.0,0.49703568]
[1759597335106,0.02031457,121770.0,121760.0,0.49703568]
[1759597345471,0.02031457,121770.0,121760.0,0.17927568]
[1759597345669,0.02031457,121770.0,121760.0,0.49699568]
[1759597348120,0.02031457,121770.0,121760.0,0.58011774]
[1759597348355,0.02031457,121770.0,121760.0,5.63011774]
[1759597348587,0.02031457,121770.0,121760.0,5.65476134]
[1759597355039,0.02031457,121770.0,121760.0,5.33704134]
[1759597355240,0.02031457,121770.0,121760.0,5.65472134]
[1759597356335,0.02031457,121770.0,121760.0,5.33704134]
[1759597356558,0.02031457,121770.0,121760.0,5.65472134]
[1759597357241,0.02031457,121770.0,121760.0,5.33704134]
[1759597357585,0.02031457,121770.0,121760.0,5.65472134]
[1759597362835,0.02031457,121770.0,121760.0,5.65468134]
[1759597364812,0.02031457,121770.0,121760.0,5.56932134]
[1759597365083,0.02031457,121770.0,121760.0,5.65468134]
[1759597366296,0.02031457,121770.0,121760.0,5.99468134]
[1759597367273,0.02031457,121770.0,121760.0,6.09468134]
[1759597368321,0.01031457,121770.0,121760.0,6.09468134]
[1759597368536,0.00131457,121770.0,121760.0,6.09268134]
[1759597368745,0.01431457,121770.0,121760.0,6.09468134]
[1759597369416,0.01431457,121770.0,121760.0,6.43604134]
[1759597369816,0.01431457,121770.0,121760.0,6.33604134]
[1759597370087,0.01431457,121770.0,121760.0,6.43604134]
[1759597370289,0.01431457,121770.0,121760.0,6.35072134]
[1759597370517,0.01431457,121770.0,121760.0,6.43604134]
[1759597370690,0.01431457,121770.0,121760.0,5.77704134]
[1759597370891,0.01431457,121770.0,121760.0,6.43604134]
[1759597371134,0.01431457,121770.0,121760.0,5.77704134]
[1759597371354,0.01431457,121770.0,121760.0,6.43604134]
[1759597371558,0.00446804,121770.0,121760.0,6.43604134]
[1759597371758,0.00446804,121770.0,121760.0,6.43600134]
[1759597372392,0.00446804,121770.0,121760.0,6.33097134]
[1759597372393,0.00644804,121770.0,121760.0,6.33097134]
[1759597372591,0.00446804,121770.0,121760.0,6.33299134]
[1759597372838,0.00446804,121770.0,121760.0,5.67705134]
[1759597373045,0.00446804,121770.0,121760.0,6.33601134]
[1759597373170,0.00446804,121770.0,121760.0,5.67705134]
[1759597373534,0.00781804,121770.0,121760.0,5.98957134]
[1759597373857,0.00644804,121770.0,121760.0,5.64957134]
[1759597374057,0.00446804,121770.0,121760.0,5.65159134]
[1759597374266,0.00446804,121770.0,121760.0,5.65461134]
[1759597374478,0.00446804,121770.0,121760.0,5.33705134]
[1759597374697,0.00446804,121770.0,121760.0,5.65461134]
[1759597384871,0.00652804,121770.0,121760.0,5.64961134]
[1759597385084,0.00446804,121770.0,121760.0,5.65162134]
[1759597385261,0.00446804,121770.0,121760.0,5.65487134]
[1759597389541,0.00226804,121770.0,121760.0,5.65487134]
[1759597390179,0.00226804,121770.0,121760.0,5.63022774]
[1759597390383,0.00226804,121770.0,121760.0,5.63351359]
[1759597391429,0.00226804,121770.0,121760.0,5.62825359]
[1759597391430,0.00424804,121770.0,121760.0,5.62825359]
[1759597391658,0.00226804,121770.0,121760.0,5.63026359]
[1759597391872,0.00226804,121770.0,121760.0,5.63351359]
[1759597395938,0.00424804,121770.0,121760.0,0.17424568]
[1759597396161,0.00561804,121770.0,121760.0,0.49184568]
[1759597396680,0.00424804,121770.0,121760.0,0.49184568]
[1759597397275,0.00424804,121770.0,121760.0,0.17424568]
[1759597397464,0.00424804,121770.0,121760.0,0.49184568]
[1759597398712,0.00424804,121770.0,121760.0,0.17424568]
[1759597398932,0.00424804,121770.0,121760.0,0.25960568]
[1759597399143,0.00424804,121770.0,121760.0,0.49184568]
[1759597399369,0.03576994,121770.0,121760.0,0.16625755]
[1759597399596,0.03576994,121770.0,121760.0,0.48385755]
[1759597399815,0.118892,121770.0,121760.0,0.3196]
[1759597400032,0.118892,121770.0,121760.0,0.48385755]
[1759597400242,0.11662396,121770.0,121760.0,0.48185755]
[1759597400689,0.12962396,121770.0,121760.0,0.3196]
[1759597400896,0.13762396,121770.0,121760.0,0.3196]
[1759597401096,0.13762396,121770.0,121760.0,0.48385755]
[1759597401943,0.13762396,121770.0,121760.0,0.3196]
[1759597402258,0.13762396,121770.0,121760.0,0.48385755]
[1759597405583,0.13625396,121770.0,121760.0,0.48385755]
[1759597408674,0.0511519,121770.0,121760.0,0.48911755]
[1759597409800,0.021,121770.0,121760.0,0.48911755]
[1759597411814,0.021,121770.0,121760.0,5.53911755]
[1759597412021,0.008,121770.0,121760.0,5.53711755]
[1759597412250,0.0004,121780.0,121770.0,0.16424406]
[1759597412443,0.00054812,121780.0,121770.0,0.16721406]
[1759597412618,0.00054812,121780.0,121770.0,0.16921406]
[1759597413632,0.00454812,121780.0,121770.0,0.17621406]
[1759597417948,0.00475318,121780.0,121770.0,0.17621406]
[1759597422172,0.00475318,121780.0,121770.0,5.30933612]
[1759597422612,0.00475318,121780.0,121770.0,5.33397713]
[1759597432930,0.00475318,121780.0,121770.0,5.67397713]
[1759597437053,0.00475318,121780.0,121770.0,5.90613713]
[1759597441722,0.00475318,121780.0,121770.0,6.24753713]
[1759597441945,0.00475318,121780.0,121770.0,6.25676829]
[1759597442820,0.00075318,121780.0,121770.0,6.25476829]
[1759597443034,0.00275318,121780.0,121770.0,5.68320829]
[1759597443268,0.08635328,121820.0,121790.0,0.17240229]